{"text_format":"1","workbook":"xlsx","n_sheets":1,"sheets":["Price Bid Sheet- WC"],"not_rendered":{"charts":0,"images":0,"macros":1,"external_links":0,"defined_names":2,"comments":0,"pivot_tables":0},"unopened":[],"bounds":{"document_bytes":16777216,"sheet_cells":100000,"rows_first":2000,"rows_last":500,"rows_between":2000,"halvings":0,"cell_chars":16384,"cell_head_chars":4096},"cells_cut":0,"cells_raw":0,"read":"whole","date_system":"1900"}

{"sheet":"Price Bid Sheet- WC","index":0,"n_rows":45,"n_cols":8,"rows_kept":45,"cut":false,"hidden":false,"merged":[[42,1,42,6],[0,0,0,6],[38,2,38,6],[40,1,40,6],[41,1,41,6],[1,0,1,6],[2,0,2,6]]}
["Price Bid Sheet For Works Contract - JS 146                                                                      F(b)"]
["Rewinding of 3-Phase Induction Motors, Single Phase Induction Motors & Ceiling Fan Motors (Works Contract)"]
["Tender Enquiry no. WEX/TE/TW/24/21    Dated 24.09.2024"]
["Sl. No.","Description of Work","% Allocation (Item-wise)","Unit of Measurement","Quantum of Work","Rate per Unit (in Rs.)","Amount (in Rs.)"]
[" (A)","( B)","( C)","(D)","(E)","(F)","(G=E*F)"]
[1,"Rewinding of 1-Phase AC Induction Motor for Air-Conditioners (it includes stator of the motor only) completed in all respect.",4.2305403166161659E-2,"no.",50,{"$f":"G6/E6","v":0},{"$f":"$G$38*C6","v":0}]
[2,"Rewinding of 1-Phase AC Induction Motor for exhaust fan below 18\" size (it includes stator of the motor only) completed in all respect.",1.821482039707107E-2,"no.",20,{"$f":"G7/E7","v":0},{"$f":"$G$38*C7","v":0}]
[3,"Rewinding of 1-Phase AC Induction motor for exhaust fan above 18\" size (it includes stator of the motor only) completed in all respect.",4.2305403166161659E-2,"no.",50,0,0]
[4,"Rewinding of 1-Phase AC Induction motor up to 01HP (it includes stator of the motor only) completed in all respect.",2.0271428509180456E-2,"no.",15,0,0]
[5,"Rewinding of 1-Phase AC Induction motor of kit/fresh-air/wall-mounted/ pedestal-fan (it includes stator of the motor only) completed in all respect.",1.0576350791540415E-2,"no.",20,0,0]
[6,"Rewinding of 3-Phase AC Induction motor up to 01HP (it includes stator of the motor only) completed in all respect.",2.7028463955100352E-2,"no.",20,0,0]
[7,"Rewinding of 3-Phase AC Induction motor 1HP to 2HP (it includes stator of the motor only) completed in all respect.",0.10717354483364475,"no.",60,0,0]
[8,"Rewinding of 3-Phase AC Induction motor 3HP to 5HP (it includes stator of the motor only) completed in all respect.",0.10576350791540416,"no.",40,0,0]
[9,"Rewinding of 3-Phase AC Induction motor 7.5HP (it includes stator of the motor only) completed in all respect.",5.8170047482993238E-2,"no.",22,0,0]
[10,"Rewinding of 3-Phase AC Induction motor 10HP (it includes stator of the motor only) completed in all respect.",5.9227607388815752E-2,"no.",12,0,0]
[11,"Rewinding of 3-Phase AC Induction motor 12.5HP to 15HP (it includes stator of the motor only) completed in all respect.",3.0083830319217898E-2,"no.",5,0,0]
[12,"Rewinding of 3-Phase AC Induction motor 20HP (it includes stator of the motor only) completed in all respect.",3.4079400279618491E-2,"no.",5,0,0]
[13,"Rewinding of 3-Phase AC Induction motor 25HP (it includes stator of the motor only) completed in all respect.",3.6899667418952162E-2,"no.",4,0,0]
[14,"Rewinding of 3-Phase AC Induction motor 30HP (it includes stator of the motor only) completed in all respect.",5.5937174017056432E-2,"no.",5,0,0]
[15,"Rewinding of 3-Phase AC Induction motor 40HP (it includes stator of the motor only) completed in all respect.",5.2621332059245608E-2,"no.",2,0,0]
[16,"Rewinding of 3-Phase AC Induction motor 50HP (it includes stator of the motor only) completed in all respect.",6.5615579363671558E-2,"no.",2,0,0]
[17,"Rewinding of ceiling fan motors.",9.9886564248175144E-2,"no.",250,{"$f":"G22/E22","v":0},{"$f":"$G$38*C22","v":0}]
[18,"Repairing/machining of fan shaft.",6.4632956530320338E-3,"no.",50,{"$f":"G23/E23","v":0},{"$f":"$G$38*C23","v":0}]
[19,"Repairing/machining of bearing housing of fan motors.",7.0509229007089435E-3,"no.",50,{"$f":"G24/E24","v":0},{"$f":"$G$38*C24","v":0}]
[20,"Replacement of shaft and bush of 1-Phase AC Induction Motor for Air-Conditioners",8.725475979211644E-3,"no.",25,{"$f":"G25/E25","v":0},{"$f":"$G$38*C25","v":0}]
[21,"Repairing of motor housing and shaft of 1-Phase AC Induction motor for exhaust fan/wall-mounted/ pedestal-fan/etc.",1.7397256721628139E-2,"no.",36,0,0]
[22,"Repairing of motor housing and shaft of 3-Phase AC Induction motor up to 01 HP",5.4983922478232146E-3,"no.",8,0,0]
[23,"Repairing of motor housing and shaft of 3-Phase AC Induction motor from 1 HP to 2 HP",1.2199557799857758E-2,"no.",16,0,0]
[24,"Repairing of bearing housing per end cover of 3-Phase AC Induction motor 3HP to 5HP ",1.0824959737901953E-2,"no.",16,0,0]
[25,"Repairing of bearing housing per end cover of 3-Phase AC Induction motor 7.5HP ",1.0094704517487932E-2,"no.",10,0,0]
[26,"Repairing of bearing housing per end cover of 3-Phase AC Induction motor 10HP ",8.3764569400431796E-3,"no.",6,0,0]
[27,"Repairing of bearing housing per end cover of 3-Phase AC Induction motor 12.5HP to 15HP ",8.2475883717348219E-3,"no.",4,0,0]
[28,"Repairing of bearing housing per end cover of 3-Phase AC Induction motor 20HP ",1.0094704517487932E-2,"no.",4,0,0]
[29,"Repairing of bearing housing per end cover of 3-Phase AC Induction motor 25HP ",1.0653134980157479E-2,"no.",4,0,0]
[30,"Repairing of bearing housing per end cover of 3-Phase AC Induction motor 30HP ",5.7561293844399283E-3,"no.",2,0,0]
[31,"Repairing of bearing housing per end cover of 3-Phase AC Induction motor 40HP ",6.0138665210566411E-3,"no.",2,0,0]
[32,"Repairing of bearing housing per end cover of 3-Phase AC Induction motor 50HP ",6.4434284154178297E-3,"no.",2,0,0]
[null,"GROSS TOTAL ( Excluding GST) ",{"$f":"SUM(C6:C37)","v":1.0000000000000004},null,null,null,null,"To be quoted by bidder"]
[null,"Total price in words: ( Excluding GST)",{"$f":"+RUP(G38)","v":0}]
["Note:"]
[null,"1. Bidder has to quote in above unlocked cell only. Item rate shall be calculated automatically. Calculated item rates upto second decimal point may be adjusted w.r.t. gross total amount and it shall be the itemwise final rate for  execution of contract and all other purposes."]
[null,"2. Quoted gross total amount should be considered only if quoted in this excel sheet and print out of this should only be considered for evaluation.  If Price is quoted in any other format other than the Excel Sheet enclosed to the NIT , the offer of the bidder  will be rejected"]
[null,"3. The quantity of each individual item given in the above price schedule is tentative and is only for evaluating the total cost of the work. During the execution of the contract, the quantity of individual items allotted to the vendor may vary in any ratio, but it will be restricted to the total contract value allotted to the vendor. The evaluation of the contract will be done on an overall L1 basis."]
[]
[null,null,null,null,"( Signature and Seal of the Contractor ) "]